[Event "Titled Tuesday Blitz July 05 Late 2022"]
[White "Zivkovic, Nemanja"]
[Black "Dubov, Daniil"]
[WhiteFideId "942154"]
[BlackFideId "24126055"]
[WhiteElo "2372"]
[BlackElo "2791"]
[Result "0-1"]
[Round "02"]
[TimeControl "180+1"]
[Date "2022.07.05"]
[WhiteClock "0:00:17"]
[BlackClock "0:00:52"]

1. e4 {[%clk 0:03:00]}  e5 {[%clk 0:02:58]} 2. Nf3 {[%clk 0:03:01]}  Nc6 {[%clk 0:02:58]} 3. Bb5 {[%clk 0:03:00]}  a6 {[%clk 0:02:55]} 4. Ba4 {[%clk 0:03:01]}  Nf6 {[%clk 0:02:55]} 5. d3 {[%clk 0:03:01]}  b5 {[%clk 0:02:53]} 6. Bb3 {[%clk 0:03:01]}  Be7 {[%clk 0:02:51]} 7. c3 {[%clk 0:03:00]}  O-O {[%clk 0:02:50]} 8. O-O {[%clk 0:03:00]}  d5 {[%clk 0:02:48]} 9. Nbd2 {[%clk 0:03:00]}  Re8 {[%clk 0:02:43]} 10. Re1 {[%clk 0:03:00]}  Bf8 {[%clk 0:02:41]} 11. a3 {[%clk 0:02:53]}  Be6 {[%clk 0:02:36]} 12. Ng5 {[%clk 0:02:48]}  Bg4 {[%clk 0:02:34]} 13. Ngf3 {[%clk 0:02:46]}  Qd7 {[%clk 0:02:32]} 14. h3 {[%clk 0:02:46]}  Bh5 {[%clk 0:02:31]} 15. Qe2 {[%clk 0:02:46]}  Rad8 {[%clk 0:02:29]} 16. Bc2 {[%clk 0:02:43]}  d4 {[%clk 0:02:23]} 17. Nf1 {[%clk 0:02:39]}  a5 {[%clk 0:02:16]} 18. Ng3 {[%clk 0:02:38]}  Bg6 {[%clk 0:02:12]} 19. a4 {[%clk 0:02:15]}  dxc3 {[%clk 0:02:08]} 20. axb5 {[%clk 0:02:15]}  Nb4 {[%clk 0:02:08]} 21. bxc3 {[%clk 0:01:39]}  Nxc2 {[%clk 0:02:04]} 22. Qxc2 {[%clk 0:01:40]}  Qxd3 {[%clk 0:02:04]} 23. Qxd3 {[%clk 0:01:35]}  Rxd3 {[%clk 0:02:05]} 24. Bd2 {[%clk 0:01:35]}  Ra8 {[%clk 0:02:00]} 25. Ra4 {[%clk 0:01:30]}  Bc5 {[%clk 0:01:52]} 26. Rea1 {[%clk 0:01:28]}  Bb6 {[%clk 0:01:48]} 27. Be1 {[%clk 0:01:24]}  Nd7 {[%clk 0:01:46]} 28. c4 {[%clk 0:01:04]}  Nc5 {[%clk 0:01:37]} 29. R4a3 {[%clk 0:01:04]}  f6 {[%clk 0:01:34]} 30. Bb4 {[%clk 0:00:39]}  Rxa3 {[%clk 0:01:26]} 31. Rxa3 {[%clk 0:00:39]}  Nxe4 {[%clk 0:01:15]} 32. Nxe4 {[%clk 0:00:20]}  Bxe4 {[%clk 0:01:16]} 33. Be7 {[%clk 0:00:21]}  Kf7 {[%clk 0:01:12]} 34. Nd2 {[%clk 0:00:17]}  Bf5 {[%clk 0:00:54]} 35. c5 {[%clk 0:00:17]}  Kxe7 {[%clk 0:00:53]} 36. cxb6 {[%clk 0:00:18]}  cxb6 {[%clk 0:00:53]} 37. Nc4 {[%clk 0:00:19]}  Rb8 {[%clk 0:00:53]} 38. g4 {[%clk 0:00:18]}  Bd7 {[%clk 0:00:52]} 39. Rb3 {[%clk 0:00:18]}  Be6 {[%clk 0:00:52]} 40. Rc3 {[%clk 0:00:17]}  Rc8 {[%clk 0:00:52]} 0-1


[Site "https://www.chess.com"]

[Event "Titled Tuesday Blitz July 05 Late 2022"]
[White "Zlatin, Alexander"]
[Black "Lashkin, Jegor"]
[WhiteFideId "2810549"]
[BlackFideId "13907808"]
[WhiteElo "2228"]
[BlackElo "2368"]
[Result "0-1"]
[Round "02"]
[TimeControl "180+1"]
[Date "2022.07.05"]
[WhiteClock "0:00:05"]
[BlackClock "0:00:47"]

1. d4 {[%clk 0:02:55]}  Nf6 {[%clk 0:03:00]} 2. c4 {[%clk 0:02:49]}  e6 {[%clk 0:02:59]} 3. g3 {[%clk 0:02:47]}  d5 {[%clk 0:02:59]} 4. Nf3 {[%clk 0:02:46]}  dxc4 {[%clk 0:03:00]} 5. Bg2 {[%clk 0:02:46]}  c6 {[%clk 0:03:00]} 6. O-O {[%clk 0:02:40]}  b5 {[%clk 0:03:00]} 7. a4 {[%clk 0:02:34]}  Bb7 {[%clk 0:03:00]} 8. Qc2 {[%clk 0:02:18]}  Nbd7 {[%clk 0:02:55]} 9. Rd1 {[%clk 0:02:17]}  a6 {[%clk 0:02:38]} 10. e4 {[%clk 0:02:02]}  Be7 {[%clk 0:02:34]} 11. Nc3 {[%clk 0:01:59]}  O-O {[%clk 0:02:32]} 12. e5 {[%clk 0:01:35]}  Nd5 {[%clk 0:02:32]} 13. Ne4 {[%clk 0:01:34]}  Nb4 {[%clk 0:02:32]} 14. Qe2 {[%clk 0:01:30]}  h6 {[%clk 0:02:24]} 15. Be3 {[%clk 0:01:17]}  Nd5 {[%clk 0:02:09]} 16. Qc2 {[%clk 0:01:05]}  Nxe3 {[%clk 0:02:05]} 17. fxe3 {[%clk 0:01:06]}  Qc7 {[%clk 0:02:01]} 18. b3 {[%clk 0:01:04]}  cxb3 {[%clk 0:01:53]} 19. Qxb3 {[%clk 0:01:05]}  c5 {[%clk 0:01:44]} 20. Nh4 {[%clk 0:00:49]}  c4 {[%clk 0:01:40]} 21. Qc2 {[%clk 0:00:46]}  b4 {[%clk 0:01:35]} 22. Qe2 {[%clk 0:00:34]}  c3 {[%clk 0:01:24]} 23. Qg4 {[%clk 0:00:32]}  c2 {[%clk 0:01:21]} 24. Rf1 {[%clk 0:00:31]}  Bxe4 {[%clk 0:01:08]} 25. Bxe4 {[%clk 0:00:32]}  b3 {[%clk 0:00:56]} 26. Ng6 {[%clk 0:00:18]}  Bg5 {[%clk 0:00:53]} 27. Nxf8 {[%clk 0:00:14]}  Rxf8 {[%clk 0:00:48]} 28. Rxf7 {[%clk 0:00:07]}  Rxf7 {[%clk 0:00:45]} 29. Qxe6 {[%clk 0:00:06]}  c1=Q+ {[%clk 0:00:45]} 30. Rxc1 {[%clk 0:00:05]}  Qxc1+ {[%clk 0:00:46]} 31. Kg2 {[%clk 0:00:05]}  Qf1# {[%clk 0:00:47]} 0-1


[Site "https://www.chess.com"]

[Event "Titled Tuesday Blitz July 05 Late 2022"]
[White "Arnold, Ken"]
[Black "Dauner, Benedikt"]
[WhiteFideId "2056836"]
[BlackFideId "16225899"]
[WhiteElo "2280"]
[BlackElo "2230"]
[Result "1-0"]
[Round "03"]
[TimeControl "180+1"]
[Date "2022.07.06"]
[WhiteClock "0:00:09"]
[BlackClock "0:00:17"]

1. d4 {[%clk 0:03:00]}  Nf6 {[%clk 0:02:53]} 2. c4 {[%clk 0:03:00]}  Nc6 {[%clk 0:02:53]} 3. Nf3 {[%clk 0:03:00]}  e6 {[%clk 0:02:52]} 4. d5 {[%clk 0:02:58]}  Ne7 {[%clk 0:02:50]} 5. Nc3 {[%clk 0:02:54]}  Ng6 {[%clk 0:02:47]} 6. h4 {[%clk 0:02:52]}  h5 {[%clk 0:02:36]} 7. Bg5 {[%clk 0:02:51]}  Bb4 {[%clk 0:02:34]} 8. Qb3 {[%clk 0:02:51]}  a5 {[%clk 0:02:29]} 9. a3 {[%clk 0:02:50]}  Be7 {[%clk 0:02:29]} 10. e4 {[%clk 0:02:47]}  e5 {[%clk 0:02:26]} 11. c5 {[%clk 0:02:40]}  Bxc5 {[%clk 0:02:22]} 12. Bc4 {[%clk 0:02:32]}  d6 {[%clk 0:02:14]} 13. Bb5+ {[%clk 0:02:15]}  Bd7 {[%clk 0:02:05]} 14. Bxd7+ {[%clk 0:02:11]}  Qxd7 {[%clk 0:02:06]} 15. Qxb7 {[%clk 0:02:07]}  O-O {[%clk 0:02:01]} 16. Bxf6 {[%clk 0:01:59]}  gxf6 {[%clk 0:02:02]} 17. Qb5 {[%clk 0:01:54]}  Qg4 {[%clk 0:02:00]} 18. Qe2 {[%clk 0:01:48]}  Nf4 {[%clk 0:01:58]} 19. Qd1 {[%clk 0:01:29]}  Rab8 {[%clk 0:01:54]} 20. Rb1 {[%clk 0:01:14]}  Kh8 {[%clk 0:01:50]} 21. g3 {[%clk 0:01:12]}  Nh3 {[%clk 0:01:30]} 22. Rh2 {[%clk 0:00:56]}  f5 {[%clk 0:01:12]} 23. Ng5 {[%clk 0:00:51]}  Nxg5 {[%clk 0:00:42]} 24. Qxg4 {[%clk 0:00:51]}  hxg4 {[%clk 0:00:39]} 25. hxg5+ {[%clk 0:00:50]}  Kg7 {[%clk 0:00:37]} 26. exf5 {[%clk 0:00:49]}  f6 {[%clk 0:00:36]} 27. g6 {[%clk 0:00:46]}  Rh8 {[%clk 0:00:36]} 28. Rxh8 {[%clk 0:00:45]}  Rxh8 {[%clk 0:00:37]} 29. Ke2 {[%clk 0:00:45]}  Rh5 {[%clk 0:00:36]} 30. b4 {[%clk 0:00:44]}  axb4 {[%clk 0:00:36]} 31. axb4 {[%clk 0:00:44]}  Bb6 {[%clk 0:00:36]} 32. Na4 {[%clk 0:00:31]}  Rxf5 {[%clk 0:00:32]} 33. Nxb6 {[%clk 0:00:31]}  cxb6 {[%clk 0:00:32]} 34. Rc1 {[%clk 0:00:30]}  e4 {[%clk 0:00:30]} 35. Rc6 {[%clk 0:00:28]}  Rxd5 {[%clk 0:00:29]} 36. Rxb6 {[%clk 0:00:29]}  Kxg6 {[%clk 0:00:29]} 37. Rb8 {[%clk 0:00:27]}  Kf5 {[%clk 0:00:29]} 38. b5 {[%clk 0:00:28]}  Rd4 {[%clk 0:00:29]} 39. b6 {[%clk 0:00:28]}  Rb4 {[%clk 0:00:29]} 40. b7 {[%clk 0:00:16]}  Rb3 {[%clk 0:00:28]} 41. Rd8 {[%clk 0:00:15]}  Rxb7 {[%clk 0:00:27]} 42. Rxd6 {[%clk 0:00:15]}  Rb2+ {[%clk 0:00:27]} 43. Ke3 {[%clk 0:00:15]}  Rb3+ {[%clk 0:00:28]} 44. Ke2 {[%clk 0:00:15]}  Rb5 {[%clk 0:00:28]} 45. Rd8 {[%clk 0:00:13]}  Rc5 {[%clk 0:00:27]} 46. Rh8 {[%clk 0:00:13]}  Ke5 {[%clk 0:00:26]} 47. Re8+ {[%clk 0:00:13]}  Kd4 {[%clk 0:00:24]} 48. Rf8 {[%clk 0:00:13]}  f5 {[%clk 0:00:23]} 49. Rd8+ {[%clk 0:00:12]}  Rd5 {[%clk 0:00:23]} 50. Rc8 {[%clk 0:00:12]}  Ra5 {[%clk 0:00:18]} 51. Rd8+ {[%clk 0:00:11]}  Ke5 {[%clk 0:00:18]} 52. Re8+ {[%clk 0:00:11]}  Kf6 {[%clk 0:00:19]} 53. Rf8+ {[%clk 0:00:12]}  Ke6 {[%clk 0:00:19]} 54. Re8+ {[%clk 0:00:12]}  Kf7 {[%clk 0:00:19]} 55. Rc8 {[%clk 0:00:12]}  Ra2+ {[%clk 0:00:18]} 56. Ke3 {[%clk 0:00:12]}  Ra3+ {[%clk 0:00:19]} 57. Ke2 {[%clk 0:00:12]}  Rf3 {[%clk 0:00:18]} 58. Rc6 {[%clk 0:00:12]}  Ke7 {[%clk 0:00:18]} 59. Rg6 {[%clk 0:00:11]}  Kd7 {[%clk 0:00:18]} 60. Rf6 {[%clk 0:00:11]}  Ke7 {[%clk 0:00:19]} 61. Ra6 {[%clk 0:00:10]}  Rb3 {[%clk 0:00:17]} 62. Rg6 {[%clk 0:00:09]}  Rb4 {[%clk 0:00:17]} 63. Ra6 {[%clk 0:00:08]}  Rb5 {[%clk 0:00:17]} 64. Ke3 {[%clk 0:00:08]}  Rb3+ {[%clk 0:00:16]} 65. Ke2 {[%clk 0:00:08]}  Kd7 {[%clk 0:00:16]} 66. Rg6 {[%clk 0:00:08]}  Rb5 {[%clk 0:00:16]} 67. Rf6 {[%clk 0:00:08]}  Re5 {[%clk 0:00:15]} 68. Ke3 {[%clk 0:00:08]}  Ke7 {[%clk 0:00:16]} 69. Ra6 {[%clk 0:00:08]}  Re6 {[%clk 0:00:16]} 70. Ra5 {[%clk 0:00:07]}  Rf6 {[%clk 0:00:05]} 71. Kf4 {[%clk 0:00:06]}  Rb6 {[%clk 0:00:06]} 72. Re5+ {[%clk 0:00:06]}  Kd7 {[%clk 0:00:04]} 73. Rxf5 {[%clk 0:00:06]}  Rb3 {[%clk 0:00:03]} 74. Kxe4 {[%clk 0:00:06]}  Ke6 {[%clk 0:00:03]} 75. Rf4 {[%clk 0:00:06]}  Rb4+ {[%clk 0:00:02]} 76. Ke3 {[%clk 0:00:06]}  Rb3+ {[%clk 0:00:03]} 77. Ke2 {[%clk 0:00:06]}  Rb2+ {[%clk 0:00:03]} 78. Kf1 {[%clk 0:00:06]}  Rb1+ {[%clk 0:00:04]} 79. Kg2 {[%clk 0:00:07]}  Ke5 {[%clk 0:00:04]} 80. Rxg4 {[%clk 0:00:07]}  Kf5 {[%clk 0:00:05]} 81. Rf4+ {[%clk 0:00:07]}  Kg5 {[%clk 0:00:06]} 82. Ra4 {[%clk 0:00:07]}  Rb2 {[%clk 0:00:07]} 83. Ra5+ {[%clk 0:00:06]}  Kf6 {[%clk 0:00:07]} 84. g4 {[%clk 0:00:05]}  Rc2 {[%clk 0:00:08]} 85. Kg3 {[%clk 0:00:05]}  Rc3+ {[%clk 0:00:09]} 86. f3 {[%clk 0:00:06]}  Rb3 {[%clk 0:00:10]} 87. Ra6+ {[%clk 0:00:06]}  Kf7 {[%clk 0:00:09]} 88. g5 {[%clk 0:00:05]}  Kg7 {[%clk 0:00:09]} 89. Kg4 {[%clk 0:00:05]}  Rb1 {[%clk 0:00:09]} 90. f4 {[%clk 0:00:05]}  Rb5 {[%clk 0:00:09]} 91. Ra4 {[%clk 0:00:04]}  Rc5 {[%clk 0:00:09]} 92. f5 {[%clk 0:00:05]}  Rd5 {[%clk 0:00:09]} 93. Ra7+ {[%clk 0:00:05]}  Kg8 {[%clk 0:00:09]} 94. g6 {[%clk 0:00:05]}  Rc5 {[%clk 0:00:09]} 95. Kg5 {[%clk 0:00:05]}  Rb5 {[%clk 0:00:09]} 96. Kh6 {[%clk 0:00:04]}  Rxf5 {[%clk 0:00:08]} 97. Ra8+ {[%clk 0:00:02]}  Rf8 {[%clk 0:00:07]} 98. Rxf8+ {[%clk 0:00:03]}  Kxf8 {[%clk 0:00:08]} 99. Kh7 {[%clk 0:00:04]}  Ke7 {[%clk 0:00:08]} 100. g7 {[%clk 0:00:04]}  Kf6 {[%clk 0:00:09]} 101. g8=Q {[%clk 0:00:05]}  Ke5 {[%clk 0:00:10]} 102. Qg6 {[%clk 0:00:06]}  Kf4 {[%clk 0:00:11]} 103. Kg7 {[%clk 0:00:07]}  Ke3 {[%clk 0:00:12]} 104. Kf6 {[%clk 0:00:07]}  Kd2 {[%clk 0:00:13]} 105. Ke5 {[%clk 0:00:08]}  Kc3 {[%clk 0:00:14]} 106. Qg3+ {[%clk 0:00:08]}  Kb2 {[%clk 0:00:15]} 107. Qe3 {[%clk 0:00:08]}  Kc2 {[%clk 0:00:15]} 108. Kd4 {[%clk 0:00:07]}  Kb1 {[%clk 0:00:16]} 109. Qe2 {[%clk 0:00:08]}  Ka1 {[%clk 0:00:16]} 110. Kc3 {[%clk 0:00:08]}  Kb1 {[%clk 0:00:17]} 111. Qb2# {[%clk 0:00:09]} 1-0


[Site "https://www.chess.com"]

[Event "Titled Tuesday Blitz July 05 Late 2022"]
[White "Barp, Alberto"]
[Black "Ponkratov, Pavel"]
[WhiteFideId "872555"]
[BlackFideId "4157800"]
[WhiteElo "2229"]
[BlackElo "2502"]
[Result "1-0"]
[Round "03"]
[TimeControl "180+1"]
[Date "2022.07.05"]
[WhiteClock "0:00:20"]
[BlackClock "0:01:41"]

1. d4 {[%clk 0:02:56]}  Nf6 {[%clk 0:02:55]} 2. c4 {[%clk 0:02:50]}  e6 {[%clk 0:02:55]} 3. g3 {[%clk 0:02:48]}  c5 {[%clk 0:02:54]} 4. Nf3 {[%clk 0:02:47]}  cxd4 {[%clk 0:02:54]} 5. Nxd4 {[%clk 0:02:48]}  Nc6 {[%clk 0:02:53]} 6. Bg2 {[%clk 0:02:48]}  Qa5+ {[%clk 0:02:54]} 7. Nc3 {[%clk 0:02:45]}  Bb4 {[%clk 0:02:50]} 8. O-O {[%clk 0:02:44]}  O-O {[%clk 0:02:49]} 9. Nb3 {[%clk 0:02:40]}  Qh5 {[%clk 0:02:49]} 10. Bd2 {[%clk 0:02:36]}  Ne5 {[%clk 0:02:48]} 11. Nb5 {[%clk 0:02:25]}  Bxd2 {[%clk 0:02:45]} 12. Nxd2 {[%clk 0:02:26]}  Nxc4 {[%clk 0:02:45]} 13. Nc7 {[%clk 0:02:00]}  Nxd2 {[%clk 0:02:44]} 14. Qxd2 {[%clk 0:02:01]}  Rb8 {[%clk 0:02:45]} 15. Qd6 {[%clk 0:01:53]}  Ng4 {[%clk 0:02:41]} 16. h3 {[%clk 0:01:53]}  Qe5 {[%clk 0:02:41]} 17. Rfd1 {[%clk 0:01:25]}  Qxd6 {[%clk 0:02:40]} 18. Rxd6 {[%clk 0:01:26]}  Nf6 {[%clk 0:02:40]} 19. Rc1 {[%clk 0:01:25]}  b6 {[%clk 0:02:40]} 20. e4 {[%clk 0:01:18]}  e5 {[%clk 0:02:24]} 21. Nd5 {[%clk 0:01:05]}  Nxd5 {[%clk 0:02:19]} 22. Rxd5 {[%clk 0:01:06]}  f6 {[%clk 0:02:20]} 23. Rc7 {[%clk 0:01:05]}  Rb7 {[%clk 0:02:16]} 24. Rxb7 {[%clk 0:00:57]}  Bxb7 {[%clk 0:02:16]} 25. Rxd7 {[%clk 0:00:58]}  Rb8 {[%clk 0:02:16]} 26. Bf1 {[%clk 0:00:54]}  Bxe4 {[%clk 0:02:13]} 27. Bc4+ {[%clk 0:00:53]}  Kh8 {[%clk 0:02:14]} 28. Rxa7 {[%clk 0:00:52]}  h6 {[%clk 0:02:12]} 29. Kf1 {[%clk 0:00:48]}  Rd8 {[%clk 0:02:11]} 30. Ke2 {[%clk 0:00:47]}  Bf5 {[%clk 0:02:09]} 31. g4 {[%clk 0:00:45]}  Bb1 {[%clk 0:02:08]} 32. a4 {[%clk 0:00:43]}  h5 {[%clk 0:02:07]} 33. Rb7 {[%clk 0:00:37]}  Rd6 {[%clk 0:02:00]} 34. gxh5 {[%clk 0:00:25]}  Kh7 {[%clk 0:02:00]} 35. Bf7 {[%clk 0:00:22]}  Be4 {[%clk 0:01:57]} 36. Rb8 {[%clk 0:00:20]}  Bd3+ {[%clk 0:01:57]} 37. Ke3 {[%clk 0:00:20]}  Bf5 {[%clk 0:01:57]} 38. b4 {[%clk 0:00:19]}  Rd7 {[%clk 0:01:51]} 39. Bg6+ {[%clk 0:00:17]}  Bxg6 {[%clk 0:01:51]} 40. hxg6+ {[%clk 0:00:18]}  Kxg6 {[%clk 0:01:52]} 41. Rxb6 {[%clk 0:00:19]}  Rd1 {[%clk 0:01:52]} 42. a5 {[%clk 0:00:19]}  Ra1 {[%clk 0:01:51]} 43. a6 {[%clk 0:00:19]}  Kf5 {[%clk 0:01:52]} 44. b5 {[%clk 0:00:19]}  Ra3+ {[%clk 0:01:53]} 45. Ke2 {[%clk 0:00:19]}  Ke4 {[%clk 0:01:53]} 46. Rb7 {[%clk 0:00:19]}  Ra2+ {[%clk 0:01:53]} 47. Kd1 {[%clk 0:00:20]}  Kd3 {[%clk 0:01:54]} 48. Kc1 {[%clk 0:00:20]}  Kc3 {[%clk 0:01:54]} 49. Kb1 {[%clk 0:00:20]}  Kb3 {[%clk 0:01:54]} 50. a7 {[%clk 0:00:20]}  Rxf2 {[%clk 0:01:54]} 51. Rc7 {[%clk 0:00:19]}  Rb2+ {[%clk 0:01:41]} 52. Kc1 {[%clk 0:00:19]}  Ra2 {[%clk 0:01:41]} 53. b6 {[%clk 0:00:20]} 1-0


[Site "https://www.chess.com"]

[Event "Titled Tuesday Blitz July 05 Late 2022"]
[White "Bazeev, German"]
[Black "Petrovic, Aleksa"]
[WhiteFideId "24119350"]
[BlackFideId "967629"]
[WhiteElo "2493"]
[BlackElo "2185"]
[Result "1-0"]
[Round "03"]
[TimeControl "180+1"]
[Date "2022.07.06"]
[WhiteClock "0:00:23"]
[BlackClock "0:00:06"]

1. d4 {[%clk 0:02:59]}  Nf6 {[%clk 0:02:59]} 2. Bg5 {[%clk 0:02:56]}  Ne4 {[%clk 0:02:51]} 3. Bf4 {[%clk 0:02:56]}  d5 {[%clk 0:02:50]} 4. Nd2 {[%clk 0:02:53]}  Nxd2 {[%clk 0:02:49]} 5. Qxd2 {[%clk 0:02:53]}  Nd7 {[%clk 0:02:46]} 6. e3 {[%clk 0:02:53]}  Nf6 {[%clk 0:02:43]} 7. Bd3 {[%clk 0:02:53]}  e6 {[%clk 0:02:37]} 8. Ne2 {[%clk 0:02:53]}  c5 {[%clk 0:02:37]} 9. c3 {[%clk 0:02:48]}  Bd6 {[%clk 0:02:36]} 10. O-O {[%clk 0:02:43]}  O-O {[%clk 0:02:31]} 11. Rfd1 {[%clk 0:02:43]}  b6 {[%clk 0:02:29]} 12. Bg3 {[%clk 0:02:42]}  a5 {[%clk 0:02:24]} 13. a4 {[%clk 0:02:41]}  Ba6 {[%clk 0:02:23]} 14. Bxa6 {[%clk 0:02:41]}  Rxa6 {[%clk 0:02:24]} 15. Qd3 {[%clk 0:02:25]}  Ra7 {[%clk 0:02:20]} 16. Qb5 {[%clk 0:02:14]}  Bxg3 {[%clk 0:02:04]} 17. Nxg3 {[%clk 0:02:07]}  c4 {[%clk 0:01:57]} 18. b3 {[%clk 0:01:49]}  Ne8 {[%clk 0:01:58]} 19. bxc4 {[%clk 0:01:45]}  Nd6 {[%clk 0:01:58]} 20. Qb3 {[%clk 0:01:44]}  Nxc4 {[%clk 0:01:54]} 21. Rab1 {[%clk 0:01:44]}  Qd7 {[%clk 0:01:48]} 22. Ne2 {[%clk 0:01:40]}  Rc8 {[%clk 0:01:46]} 23. Qb5 {[%clk 0:01:40]}  Qxb5 {[%clk 0:01:27]} 24. Rxb5 {[%clk 0:01:41]}  Rc6 {[%clk 0:01:27]} 25. Ra1 {[%clk 0:01:31]}  Rac7 {[%clk 0:01:21]} 26. Ra2 {[%clk 0:01:25]}  Nd6 {[%clk 0:01:19]} 27. Rb3 {[%clk 0:01:19]}  Ne4 {[%clk 0:01:15]} 28. Rc2 {[%clk 0:01:16]}  g5 {[%clk 0:01:09]} 29. f3 {[%clk 0:01:15]}  Nd6 {[%clk 0:01:09]} 30. Kf2 {[%clk 0:01:15]}  Rb7 {[%clk 0:01:02]} 31. g4 {[%clk 0:01:09]}  b5 {[%clk 0:01:00]} 32. Ra2 {[%clk 0:01:03]}  Rcb6 {[%clk 0:00:48]} 33. e4 {[%clk 0:00:51]}  dxe4 {[%clk 0:00:42]} 34. axb5 {[%clk 0:00:50]}  exf3 {[%clk 0:00:40]} 35. Kxf3 {[%clk 0:00:49]}  Rxb5 {[%clk 0:00:39]} 36. Rxb5 {[%clk 0:00:50]}  Rxb5 {[%clk 0:00:39]} 37. Ke3 {[%clk 0:00:48]}  e5 {[%clk 0:00:29]} 38. Kd3 {[%clk 0:00:46]}  exd4 {[%clk 0:00:27]} 39. Nxd4 {[%clk 0:00:47]}  Rd5 {[%clk 0:00:25]} 40. Rb2 {[%clk 0:00:43]}  Kg7 {[%clk 0:00:24]} 41. Rb6 {[%clk 0:00:42]}  Ne8 {[%clk 0:00:09]} 42. c4 {[%clk 0:00:39]}  Rd7 {[%clk 0:00:08]} 43. c5 {[%clk 0:00:37]}  Nc7 {[%clk 0:00:08]} 44. Kc4 {[%clk 0:00:37]}  a4 {[%clk 0:00:07]} 45. Nf5+ {[%clk 0:00:31]}  Kf8 {[%clk 0:00:07]} 46. Rb8+ {[%clk 0:00:31]}  Ne8 {[%clk 0:00:07]} 47. Nd6 {[%clk 0:00:30]}  Re7 {[%clk 0:00:07]} 48. Ra8 {[%clk 0:00:29]}  a3 {[%clk 0:00:06]} 49. Rxa3 {[%clk 0:00:25]}  Nxd6+ {[%clk 0:00:06]} 50. cxd6 {[%clk 0:00:26]}  Rd7 {[%clk 0:00:06]} 51. Ra8+ {[%clk 0:00:23]}  Kg7 {[%clk 0:00:06]} 52. Kc5 {[%clk 0:00:24]}  Kf6 {[%clk 0:00:06]} 53. Kc6 {[%clk 0:00:23]} 1-0


[Site "https://www.chess.com"]

[Event "Titled Tuesday Blitz July 05 Late 2022"]
[White "Bilych, Olexiy"]
[Black "Tabatabaei, M. Amin"]
[WhiteFideId "14156504"]
[BlackFideId "12521213"]
[WhiteElo "2189"]
[BlackElo "2544"]
[Result "1-0"]
[Round "03"]
[TimeControl "180+1"]
[Date "2022.07.05"]
[WhiteClock "0:00:07"]
[BlackClock "0:00:03"]

1. e4 {[%clk 0:02:58]}  c6 {[%clk 0:02:59]} 2. d4 {[%clk 0:02:57]}  d5 {[%clk 0:03:00]} 3. e5 {[%clk 0:02:58]}  Bf5 {[%clk 0:02:59]} 4. h4 {[%clk 0:02:58]}  h5 {[%clk 0:02:57]} 5. Bd3 {[%clk 0:02:54]}  Bxd3 {[%clk 0:02:57]} 6. Qxd3 {[%clk 0:02:55]}  e6 {[%clk 0:02:57]} 7. Nf3 {[%clk 0:02:54]}  Qa5+ {[%clk 0:02:56]} 8. Nbd2 {[%clk 0:02:52]}  Qa6 {[%clk 0:02:55]} 9. c4 {[%clk 0:02:52]}  Ne7 {[%clk 0:02:52]} 10. b3 {[%clk 0:02:46]}  Nf5 {[%clk 0:02:52]} 11. O-O {[%clk 0:02:40]}  Be7 {[%clk 0:02:51]} 12. a4 {[%clk 0:02:36]}  Nxh4 {[%clk 0:02:45]} 13. Nxh4 {[%clk 0:02:36]}  Bxh4 {[%clk 0:02:46]} 14. Ba3 {[%clk 0:02:37]}  Nd7 {[%clk 0:02:42]} 15. a5 {[%clk 0:02:30]}  Qxa5 {[%clk 0:02:28]} 16. Be7 {[%clk 0:02:26]}  Qxa1 {[%clk 0:02:27]} 17. Rxa1 {[%clk 0:02:26]}  Bxe7 {[%clk 0:02:28]} 18. cxd5 {[%clk 0:02:08]}  exd5 {[%clk 0:01:56]} 19. Qg3 {[%clk 0:02:08]}  O-O {[%clk 0:01:32]} 20. Qh3 {[%clk 0:01:56]}  Rfd8 {[%clk 0:01:29]} 21. Qxh5 {[%clk 0:01:56]}  c5 {[%clk 0:01:29]} 22. g3 {[%clk 0:01:36]}  cxd4 {[%clk 0:01:15]} 23. Kg2 {[%clk 0:01:22]}  g6 {[%clk 0:01:15]} 24. Qe2 {[%clk 0:01:23]}  Nc5 {[%clk 0:01:05]} 25. Nf3 {[%clk 0:01:13]}  Ne6 {[%clk 0:01:00]} 26. Rh1 {[%clk 0:01:10]}  Bf8 {[%clk 0:00:52]} 27. Qd2 {[%clk 0:01:09]}  Bg7 {[%clk 0:00:52]} 28. Nxd4 {[%clk 0:01:06]}  Nxd4 {[%clk 0:00:44]} 29. Qxd4 {[%clk 0:01:07]}  a5 {[%clk 0:00:45]} 30. f4 {[%clk 0:00:50]}  b5 {[%clk 0:00:45]} 31. Ra1 {[%clk 0:00:44]}  Bf8 {[%clk 0:00:44]} 32. Qb6 {[%clk 0:00:41]}  a4 {[%clk 0:00:31]} 33. bxa4 {[%clk 0:00:35]}  b4 {[%clk 0:00:32]} 34. e6 {[%clk 0:00:27]}  Rab8 {[%clk 0:00:14]} 35. exf7+ {[%clk 0:00:27]}  Kxf7 {[%clk 0:00:15]} 36. Qc7+ {[%clk 0:00:26]}  Kg8 {[%clk 0:00:16]} 37. a5 {[%clk 0:00:17]}  b3 {[%clk 0:00:16]} 38. a6 {[%clk 0:00:16]}  b2 {[%clk 0:00:16]} 39. Rb1 {[%clk 0:00:16]}  Rdc8 {[%clk 0:00:16]} 40. a7 {[%clk 0:00:16]}  Ra8 {[%clk 0:00:15]} 41. Qb7 {[%clk 0:00:16]}  Bg7 {[%clk 0:00:15]} 42. Qxd5+ {[%clk 0:00:15]}  Kf8 {[%clk 0:00:16]} 43. Qb7 {[%clk 0:00:14]}  Kg8 {[%clk 0:00:12]} 44. Kh3 {[%clk 0:00:14]}  Rd8 {[%clk 0:00:11]} 45. Kg4 {[%clk 0:00:14]}  Re8 {[%clk 0:00:11]} 46. Qb3+ {[%clk 0:00:11]}  Kf8 {[%clk 0:00:11]} 47. Qb6 {[%clk 0:00:11]}  Rac8 {[%clk 0:00:06]} 48. Rxb2 {[%clk 0:00:09]}  Bxb2 {[%clk 0:00:06]} 49. Qxb2 {[%clk 0:00:10]}  Kf7 {[%clk 0:00:05]} 50. Qb7+ {[%clk 0:00:09]}  Kf6 {[%clk 0:00:05]} 51. Qa6+ {[%clk 0:00:10]}  Kf7 {[%clk 0:00:05]} 52. Qd6 {[%clk 0:00:07]}  Ra8 {[%clk 0:00:05]} 53. Qc7+ {[%clk 0:00:06]}  Re7 {[%clk 0:00:05]} 54. Qc4+ {[%clk 0:00:07]}  Kg7 {[%clk 0:00:02]} 55. Qd4+ {[%clk 0:00:07]}  Kf7 {[%clk 0:00:03]} 56. Qd5+ {[%clk 0:00:07]} 1-0


[Site "https://www.chess.com"]